bitfinex/quotes_BTCUSD_20250313
["timestamp","ask_amount","ask_price","bid_price","bid_amount"]
[1741891351395,0.259524,80918.0,80913.0,0.012358]
[1741891351752,0.012358,80919.0,80914.0,0.259531]
[1741891351951,0.56898,80924.0,80920.0,0.012357]
[1741891351952,0.15948,80924.0,80920.0,0.012357]
[1741891352158,0.406627,80924.0,80918.0,0.247163]
[1741891352353,0.406627,80924.0,80919.0,0.012358]
[1741891352354,0.19634924,80924.0,80919.0,0.012358]
[1741891352574,0.44349624,80924.0,80919.0,0.259518]
[1741891352982,0.19634924,80924.0,80918.0,0.012358]
[1741891353160,0.19634924,80924.0,80919.0,0.012358]
[1741891353557,0.03686924,80924.0,80919.0,0.012358]
[1741891353768,0.012358,80914.0,80907.0,0.012359]
[1741891353980,0.012358,80917.0,80909.0,0.012359]
[1741891354187,0.012358,80917.0,80909.0,0.13205999]
[1741891355107,0.03686924,80924.0,80913.0,0.012358]
[1741891355327,0.406577,80927.0,80910.0,0.13205999]
[1741891355328,0.4095,80941.0,80933.0,0.012355]
[1741891355493,0.4095,80941.0,80933.0,0.259472]
[1741891355690,0.00075293,80934.0,80933.0,0.37917299]
[1741891355915,0.24713,80929.0,80920.0,0.0758]
[1741891356091,0.2595,80925.0,80920.0,0.0758]
[1741891356451,0.002,80924.0,80921.0,0.11970099]
[1741891356610,0.002,80924.0,80923.0,0.012357]
[1741891357811,0.002,80924.0,80923.0,0.13205799]
[1741891357961,0.15944,80937.0,80933.0,0.012355]
[1741891358166,0.15944,80937.0,80932.0,0.259475]
[1741891358375,0.15944,80937.0,80933.0,0.13405599]
[1741891358548,0.15944,80937.0,80933.0,0.12170099]
[1741891358763,0.15944,80937.0,80933.0,0.11970099]
[1741891359010,0.012355,80936.0,80933.0,0.11970099]
[1741891359300,0.247109,80936.0,80933.0,0.11970099]
[1741891359483,0.171795,80937.0,80933.0,0.11970099]
[1741891359683,0.24711,80936.0,80933.0,0.001]
[1741891360009,0.26832843,80934.0,80933.0,0.001]
[1741891360161,0.26022193,80934.0,80933.0,0.001]
[1741891360369,0.00885943,80934.0,80933.0,0.001]
[1741891360587,0.26832843,80934.0,80933.0,0.001]
[1741891360789,0.00885943,80934.0,80933.0,0.001]
[1741891361535,0.00885943,80934.0,80933.0,0.002]
[1741891361716,0.26832843,80934.0,80933.0,0.002]
[1741891363422,0.00885943,80934.0,80933.0,0.002]
[1741891363636,0.00885943,80934.0,80933.0,0.13405599]
[1741891364061,0.00075293,80934.0,80933.0,0.13405599]
[1741891364395,0.00898932,80934.0,80933.0,0.12170099]
[1741891364595,0.00075293,80934.0,80933.0,0.12170099]
[1741891364769,0.00898932,80934.0,80933.0,0.12170099]
[1741891364982,0.00075293,80934.0,80933.0,0.12170099]
[1741891365186,0.00898932,80934.0,80933.0,0.12170099]
[1741891365408,0.00075293,80934.0,80933.0,0.12170099]
[1741891365601,0.02134432,80934.0,80933.0,0.002]
[1741891365761,0.01310793,80934.0,80933.0,0.002]
[1741891365963,0.02134432,80934.0,80933.0,0.002]
[1741891366563,0.00898932,80934.0,80933.0,0.002]
[1741891368111,0.02134432,80934.0,80933.0,0.002]
[1741891371339,0.02134432,80934.0,80933.0,0.001]
[1741891371539,0.012357,80925.0,80920.0,0.247156]
[1741891371738,0.00825557,80924.0,80921.0,0.11970099]
[1741891372127,0.02761605,80924.0,80921.0,0.11970099]
[1741891372330,0.27476105,80924.0,80921.0,0.11970099]
[1741891372559,0.28711805,80924.0,80921.0,0.11970099]
[1741891372764,0.012357,80923.0,80912.0,0.1265]
[1741891372964,0.259551,80909.0,80902.0,0.01236]
[1741891373168,0.247196,80908.0,80902.0,0.01218455]
[1741891373388,0.012359,80907.0,80902.0,0.01218455]
[1741891373792,0.02046436,80907.0,80902.0,0.01218455]
[1741891374010,0.47974436,80907.0,80897.0,0.0001691]
[1741891374389,0.51603277,80907.0,80897.0,0.0001691]
[1741891374728,0.52098877,80907.0,80897.0,0.0001691]
[1741891374927,0.64068976,80907.0,80897.0,0.0001691]
[1741891375154,0.559614,80889.0,80871.0,0.0004]
[1741891375424,0.259669,80872.0,80871.0,0.0004]
[1741891375627,0.012362,80887.0,80871.0,0.12022573]
[1741891375850,0.012363,80886.0,80872.0,0.11970099]
[1741891375971,0.259639,80882.0,80875.0,0.012364]
[1741891376171,0.259639,80882.0,80871.0,0.00052474]
[1741891376172,0.012363,80881.0,80871.0,0.00052474]
[1741891376398,0.259653,80877.0,80871.0,0.12022573]
[1741891376589,0.259653,80877.0,80872.0,0.247304]
[1741891376797,0.259653,80877.0,80871.0,0.13259073]
[1741891376798,0.00781296,80876.0,80871.0,0.13259073]
[1741891377302,0.00781296,80876.0,80874.0,0.012364]
[1741891377506,0.259645,80880.0,80875.0,0.247295]
[1741891377711,0.00781296,80879.0,80875.0,0.247295]
[1741891377905,0.00781296,80879.0,80871.0,0.38589473]
[1741891377906,0.247286,80878.0,80871.0,0.38589473]
[1741891378163,0.247286,80878.0,80871.0,0.37989473]
[1741891378467,0.012365,80872.0,80871.0,0.12522573]
[1741891378645,0.2473,80874.0,80871.0,0.12022573]
[1741891378858,0.247279,80881.0,80874.0,0.247296]
[1741891379057,0.247259,80887.0,80876.0,0.259653]
[1741891379215,0.15924,80891.0,80883.0,0.012363]
[1741891379413,0.012362,80887.0,80882.0,0.247273]
[1741891379615,0.012362,80887.0,80882.0,0.258636]
[1741891379818,0.02437646,80889.0,80885.0,0.247262]
[1741891380137,0.012362,80887.0,80882.0,0.012363]
[1741891380524,0.02437646,80889.0,80885.0,0.247264]
[1741891380743,0.02437646,80889.0,80883.0,0.259633]
[1741891380943,0.259624,80886.0,80881.0,0.247273]
[1741891381156,0.012363,80881.0,80876.0,0.003]
[1741891381413,0.259646,80879.0,80876.0,0.005]
[1741891381549,0.012363,80881.0,80876.0,0.262654]
[1741891381761,0.012363,80881.0,80876.0,0.259654]
[1741891381969,0.02437646,80889.0,80883.0,0.001]
[1741891382171,0.02437646,80889.0,80884.0,0.247267]
[1741891382393,0.012362,80893.0,80888.0,0.259617]
[1741891382631,0.012362,80887.0,80882.0,1.5]
[1741891382924,0.012363,80886.0,80884.0,0.0001691]
[1741891383540,0.012362,80893.0,80884.0,0.0001691]
[1741891383762,0.012362,80888.0,80884.0,0.0001691]
[1741891383960,0.247261,80886.0,80884.0,0.0001691]
[1741891384154,0.03768064,80890.0,80884.0,0.0001691]
[1741891384299,0.26745111,80889.0,80884.0,0.0001691]
[1741891384506,0.26745111,80889.0,80888.0,0.001]
[1741891384703,0.00783511,80889.0,80888.0,0.001]
[1741891384910,0.247237,80894.0,80888.0,0.259617]
[1741891385118,0.247258,80887.0,80884.0,0.0011691]
[1741891385328,0.012363,80885.0,80884.0,0.0021691]
[1741891385539,0.01889226,80885.0,80884.0,0.0031691]
[1741891385804,0.01889226,80885.0,80884.0,0.0011691]
[1741891385965,0.01889226,80885.0,80884.0,0.0001691]
[1741891386172,0.25379326,80885.0,80884.0,0.0001691]
[1741891386431,0.00652926,80885.0,80884.0,0.0001691]
[1741891386575,0.01889226,80885.0,80884.0,0.0001691]
[1741891386782,0.012363,80885.0,80884.0,0.0001691]
[1741891387066,0.00651771,80885.0,80884.0,0.13223309]
[1741891387457,0.25962,80888.0,80884.0,0.11987009]
[1741891387668,0.00651771,80885.0,80884.0,0.37950009]
[1741891387857,0.012362,80892.0,80886.0,0.012363]
[1741891388166,0.012361,80894.0,80886.0,0.247261]
[1741891388374,0.01236,80904.0,80897.0,0.259586]
[1741891388617,0.01236,80906.0,80897.0,0.012361]
[1741891388858,0.815939,80907.0,80902.0,0.25957]
[1741891389038,0.79736,80905.0,80900.0,0.259577]
[1741891389279,0.02438156,80903.0,80900.0,0.259577]
[1741891389462,0.02438156,80903.0,80902.0,0.01236]
[1741891389630,0.012359,80912.0,80906.0,0.01236]
[1741891389826,0.02505834,80909.0,80906.0,0.010424]
[1741891390411,0.27225034,80909.0,80903.0,0.259569]
[1741891390611,0.012361,80897.0,80890.0,0.259611]
[1741891390927,0.259574,80902.0,80895.0,0.247234]
[1741891391152,0.001,80905.0,80897.0,0.012361]
[1741891391337,0.01236,80906.0,80898.0,0.012361]
[1741891391534,0.001,80904.0,80903.0,0.003]
[1741891391861,0.01236,80904.0,80903.0,0.003]
[1741891392003,0.01236,80902.0,80897.0,0.11970099]
[1741891392205,0.01236,80902.0,80897.0,0.37928699]
[1741891392609,0.247232,80896.0,80894.0,0.00012474]
[1741891392804,0.259585,80898.0,80894.0,0.00012474]
[1741891393146,0.00659687,80897.0,80894.0,0.00012474]
[1741891394002,0.26618787,80897.0,80894.0,0.00012474]
[1741891394383,0.00659687,80897.0,80894.0,0.24736074]
[1741891394516,0.012361,80896.0,80894.0,0.00012474]
[1741891394720,0.012361,80896.0,80894.0,0.00312474]
[1741891394918,0.00659687,80895.0,80894.0,0.00312474]
[1741891395194,0.00659687,80895.0,80894.0,0.00612474]
[1741891395373,0.01895787,80895.0,80894.0,0.00312474]
[1741891395572,0.01895787,80895.0,80894.0,0.00012474]
[1741891395774,0.01895787,80895.0,80894.0,0.00712474]
[1741891395954,0.31895787,80895.0,80894.0,0.00712474]
[1741891396159,0.31895787,80895.0,80894.0,0.00412474]
[1741891396410,0.31895787,80895.0,80894.0,0.00812474]
[1741891396774,0.33156298,80895.0,80894.0,0.00812474]
[1741891396974,0.33156298,80895.0,80894.0,0.00412474]
[1741891397219,0.33156298,80895.0,80894.0,0.00812474]
[1741891397580,0.35093214,80895.0,80894.0,0.00812474]
[1741891397898,0.35093214,80895.0,80894.0,0.00012474]
[1741891398064,0.51009214,80895.0,80894.0,0.00012474]
[1741891398427,0.53446714,80895.0,80894.0,0.00012474]
[1741891398785,0.51509798,80895.0,80894.0,0.00012474]
[1741891399944,0.259627,80886.0,80881.0,0.24599664]
[1741891400177,0.259627,80886.0,80878.0,0.012364]
[1741891400178,0.25963,80884.0,80878.0,0.012364]
[1741891400476,0.012363,80884.0,80878.0,0.11970099]
[1741891400632,0.259636,80883.0,80878.0,0.36698399]
[1741891400839,0.259636,80883.0,80878.0,0.37934799]
[1741891401040,0.00650831,80882.0,80881.0,0.003]
[1741891401236,0.00650831,80882.0,80881.0,0.006]
[1741891401481,0.00650831,80882.0,80880.0,0.012363]
[1741891401640,0.247265,80885.0,80880.0,0.012363]
[1741891401852,0.0065073,80881.0,80880.0,0.012363]
[1741891402170,0.012363,80886.0,80882.0,0.247271]
[1741891402578,0.259626,80886.0,80881.0,0.012363]
[1741891403513,0.012363,80885.0,80879.0,0.24728]
[1741891404167,0.012362,80889.0,80882.0,0.247271]
[1741891404381,0.012362,80891.0,80884.0,0.012363]
[1741891404584,0.012362,80892.0,80885.0,0.012363]
[1741891404771,0.012362,80891.0,80884.0,0.012363]
[1741891404987,0.00651281,80890.0,80889.0,0.259614]
[1741891405359,0.247238,80894.0,80889.0,0.259614]
[1741891405654,0.024375,80895.0,80890.0,0.259608]
[1741891405856,0.25375381,80893.0,80889.0,0.012362]
[1741891406066,0.247241,80893.0,80889.0,0.012362]
[1741891406428,0.00651281,80892.0,80889.0,0.012362]
[1741891406568,0.00651281,80892.0,80885.0,0.248261]
[1741891406569,0.259608,80891.0,80885.0,0.248261]
[1741891406793,0.012362,80891.0,80886.0,0.247258]
[1741891406993,0.012362,80891.0,80887.0,0.247256]
[1741891407199,0.00651281,80890.0,80888.0,0.247252]
[1741891407596,0.247241,80893.0,80888.0,0.247252]
[1741891407813,0.024375,80895.0,80893.0,0.247237]
[1741891408135,0.17144,80902.0,80897.0,0.259587]
[1741891408459,0.247228,80897.0,80892.0,0.012362]
[1741891408596,0.00012305,80899.0,80894.0,0.012361]
[1741891408799,0.02470695,80898.0,80896.0,0.247228]
[1741891409034,0.02470695,80898.0,80893.0,0.2596]
[1741891409175,0.259594,80896.0,80889.0,0.259611]
[1741891409383,0.259594,80896.0,80890.0,0.13206299]
[1741891409689,0.02470695,80898.0,80893.0,0.01079384]
[1741891409896,0.00012305,80899.0,80896.0,0.247228]
[1741891410108,0.00012305,80899.0,80897.0,0.012361]
[1741891410393,0.00012305,80899.0,80896.0,0.247228]
[1741891410665,0.02049014,80899.0,80895.0,0.259593]
[1741891410993,0.00112305,80899.0,80898.0,0.012361]
[1741891411198,0.00012305,80899.0,80898.0,0.13206199]
[1741891411955,0.00012305,80899.0,80898.0,0.13329796]
[1741891412283,0.00012305,80899.0,80898.0,0.13506199]
[1741891412628,0.00012305,80899.0,80898.0,0.14782004]
[1741891413443,0.00012305,80899.0,80898.0,0.15082004]
[1741891413928,0.00012305,80899.0,80898.0,0.14782004]
[1741891414744,0.00012305,80899.0,80898.0,0.15182004]
[1741891415555,0.00012305,80899.0,80898.0,0.29419677]
[1741891415856,0.00012305,80899.0,80898.0,2.09296089]
[1741891415857,5e-08,80899.0,80898.0,2.09296089]
[1741891416216,4.5e-07,80906.0,80905.0,0.40540385]
[1741891416430,4.5e-07,80906.0,80905.0,0.51274484]
[1741891416733,4.5e-07,80906.0,80905.0,0.89927914]
[1741891417017,0.10992476,80950.0,80933.0,0.385972]
[1741891417226,0.10992476,80950.0,80949.0,0.259422]
[1741891417430,0.11034072,80950.0,80949.0,0.50472299]
[1741891417631,0.11614238,80950.0,80949.0,0.51926384]
[1741891417868,0.11034072,80950.0,80949.0,0.51926384]
[1741891418236,0.00041596,80950.0,80949.0,0.81926384]
[1741891419302,0.00041596,80950.0,80949.0,0.83179005]
[1741891419910,0.00041596,80950.0,80949.0,0.83579005]
[1741891420126,0.00041596,80950.0,80949.0,0.8182492]
[1741891420552,0.00041596,80950.0,80949.0,0.4416492]
[1741891420758,0.00041596,80950.0,80949.0,0.43412299]
[1741891421183,0.00041596,80950.0,80949.0,0.38912299]
[1741891421381,0.00041596,80950.0,80949.0,0.38412299]
[1741891421784,0.00041596,80950.0,80949.0,0.14105399]
[1741891422034,0.00075416,80950.0,80949.0,0.13605399]
[1741891422232,0.00075416,80950.0,80949.0,0.14005399]
[1741891422435,0.00075416,80950.0,80949.0,0.38712299]
[1741891422640,0.01310716,80950.0,80949.0,0.008]
[1741891423015,0.012354,80939.0,80932.0,0.259476]
[1741891423247,0.259456,80939.0,80933.0,0.13205599]
[1741891423451,0.259456,80939.0,80933.0,0.11970099]
[1741891423653,0.00609552,80938.0,80933.0,0.13205599]
[1741891423801,0.00609552,80938.0,80937.0,0.012355]
[1741891424009,0.259436,80945.0,80938.0,0.259457]
[1741891424173,0.0244868,80941.0,80938.0,0.259457]
[1741891424367,0.00609552,80940.0,80938.0,0.259457]
[1741891424779,0.00609552,80940.0,80939.0,0.13205499]
[1741891424979,0.00075416,80950.0,80944.0,0.012354]
[1741891425240,0.00591638,80949.0,80948.0,0.012353]
[1741891425460,0.00591638,80949.0,80948.0,0.13205399]
[1741891425663,0.00075416,80950.0,80949.0,0.259422]
[1741891425994,0.00075416,80950.0,80949.0,0.52116384]
[1741891427402,0.00075416,80950.0,80949.0,0.52616384]
[1741891427821,0.00075416,80950.0,80949.0,0.82616384]
[1741891429043,0.00075416,80950.0,80949.0,0.83116384]
[1741891429284,1.6e-07,80950.0,80949.0,0.83116384]
[1741891430169,1.6e-07,80950.0,80949.0,0.84039395]
[1741891434384,1.6e-07,80950.0,80949.0,2.34039395]
[1741891434584,1.6e-07,80950.0,80949.0,2.33539395]
[1741891435235,1.6e-07,80950.0,80949.0,2.33039395]
[1741891435430,1.6e-07,80950.0,80949.0,2.33639395]
[1741891436702,1.6e-07,80950.0,80949.0,2.34239395]
[1741891436920,0.012349,80975.0,80966.0,0.01235]
[1741891437093,0.246999,80972.0,80967.0,0.13205099]
[1741891437293,0.00625396,80974.0,80969.0,0.01235]
[1741891437521,0.00012475,80975.0,80969.0,0.01235]
[1741891437522,0.00012475,80975.0,80970.0,0.37905299]
[1741891437737,0.00625396,80973.0,80971.0,0.259349]
[1741891437934,0.00012475,80975.0,80971.0,0.37904999]
[1741891438135,0.00012475,80975.0,80971.0,0.11970099]
[1741891438136,0.00625396,80972.0,80971.0,0.11970099]
[1741891438373,0.246998,80973.0,80971.0,0.11970099]
[1741891438575,0.00625396,80972.0,80971.0,0.11970099]
[1741891438747,0.01860296,80972.0,80971.0,0.11970099]
[1741891438949,0.01235,80967.0,80966.0,0.002]
[1741891439150,0.012351,80961.0,80956.0,0.02476663]
[1741891439305,0.012351,80961.0,80957.0,0.11970099]
[1741891439306,0.259384,80961.0,80957.0,0.11970099]
[1741891439504,0.00623549,80960.0,80957.0,0.11970099]
[1741891439732,0.00623549,80960.0,80957.0,0.36674299]
[1741891439904,0.012352,80958.0,80957.0,0.11970099]
[1741891440106,0.01935126,80961.0,80955.0,0.012352]
[1741891440306,0.01935126,80961.0,80960.0,0.012351]
[1741891440555,0.01935126,80961.0,80960.0,0.13205199]
[1741891440757,0.012352,80957.0,80950.0,0.012353]
[1741891440956,0.247037,80960.0,80956.0,0.247046]
[1741891440957,0.012351,80960.0,80956.0,0.247046]
[1741891441234,0.01935126,80961.0,80956.0,0.247046]
[1741891441235,0.01935126,80961.0,80957.0,0.262394]
[1741891441474,0.01935126,80961.0,80960.0,0.259386]
[1741891441763,0.01935126,80961.0,80960.0,0.37908699]
[1741891443071,0.01935126,80961.0,80960.0,0.38108699]
[1741891443392,0.01935126,80961.0,80960.0,0.38508699]
[1741891443728,0.01935126,80961.0,80960.0,0.39108699]
[1741891444456,0.01935126,80961.0,80960.0,1.89108699]
[1741891445428,0.01935126,80961.0,80960.0,1.88508699]
[1741891445643,0.01935126,80961.0,80960.0,1.89108699]
[1741891446139,0.00012475,80975.0,80974.0,0.259341]
[1741891446343,0.00012475,80975.0,80974.0,0.37904199]
[1741891446925,0.00012475,80975.0,80974.0,1.87904199]
[1741891447336,0.00012475,80975.0,80974.0,1.88104199]
[1741891447532,0.00012475,80975.0,80974.0,2.19358284]
[1741891447966,7.5e-07,80975.0,80974.0,2.19558284]
[1741891448208,7.5e-07,80975.0,80974.0,2.24178284]
[1741891448412,1.5e-07,80984.0,80983.0,0.259313]
[1741891448616,1.5e-07,80984.0,80983.0,0.92915484]
[1741891450082,1.5e-07,80984.0,80983.0,0.93515484]
[1741891450285,1.5e-07,80984.0,80983.0,0.94115484]
[1741891451310,0.01138354,81005.0,80998.0,0.012345]
[1741891451517,0.01138354,81005.0,80999.0,0.11970099]
[1741891451518,0.259255,81002.0,80999.0,0.11970099]
[1741891451953,0.259255,81002.0,80985.0,0.246959]
[1741891451954,0.012346,80992.0,80983.0,0.024348]
[1741891452168,0.259275,80995.0,80987.0,0.01265522]
[1741891452378,0.246927,80996.0,80988.0,0.11970099]
[1741891452589,0.01882294,80994.0,80988.0,0.11970099]
[1741891452793,0.259276,80995.0,80983.0,0.246962]
[1741891452919,0.00663611,80993.0,80984.0,0.11970099]
[1741891453144,0.02487012,80998.0,80992.0,0.246937]
[1741891453340,0.02487012,80998.0,80993.0,0.246932]
[1741891453540,0.02487012,80998.0,80991.0,0.012347]
[1741891453868,0.00660965,80997.0,80996.0,0.259269]
[1741891454063,0.00650792,80997.0,80996.0,0.37896999]
[1741891454269,0.00012461,81004.0,81003.0,0.259249]
[1741891454824,0.00671731,81004.0,81003.0,0.259249]
[1741891455030,0.00012461,81004.0,81003.0,0.259249]
[1741891456165,0.00012461,81004.0,81003.0,0.263249]
[1741891456384,0.01946549,81004.0,81003.0,0.263249]
[1741891456579,0.01946549,81004.0,81003.0,0.38294999]
[1741891456810,0.00012461,81004.0,81003.0,0.38594999]
[1741891458418,0.00012461,81004.0,81003.0,0.007]
[1741891458647,0.00012461,81004.0,81003.0,0.019345]
[1741891459169,0.25937061,81004.0,81003.0,0.007]
[1741891459397,0.33517061,81004.0,81003.0,0.007]
[1741891459592,0.1282363,81004.0,81003.0,0.007]
[1741891459749,0.3874823,81004.0,81003.0,0.007]
[1741891460158,0.012349,80972.0,80960.0,0.000338]
[1741891460361,0.247032,80961.0,80960.0,0.12003899]
[1741891460578,0.247005,80970.0,80960.0,0.247371]
[1741891460783,0.0066066,80961.0,80960.0,0.000338]
[1741891460982,0.01235,80971.0,80965.0,0.247017]
[1741891461182,0.01231655,80976.0,80965.0,0.247017]
[1741891461183,0.00648856,80970.0,80969.0,0.01235]
[1741891461387,0.012349,80976.0,80970.0,0.247005]
[1741891461583,0.02503037,80977.0,80975.0,0.012349]
[1741891461783,0.15844,80987.0,80981.0,0.24697]
[1741891461962,0.02489426,80984.0,80981.0,0.24697]
[1741891462306,0.02489426,80984.0,80978.0,0.24698]
[1741891462603,0.246971,80981.0,80972.0,0.012349]
[1741891462817,0.259316,80982.0,80976.0,0.012349]
[1741891462960,0.012348,80982.0,80976.0,0.012349]
[1741891463187,0.012348,80982.0,80970.0,0.00012461]
[1741891463188,0.012349,80978.0,80970.0,0.00012461]
[1741891463395,0.012349,80978.0,80970.0,0.25947661]
[1741891463818,0.27185826,80984.0,80974.0,0.012349]
[1741891464105,0.246975,80980.0,80976.0,0.002]
[1741891464305,0.259328,80979.0,80972.0,0.247996]
[1741891464514,0.02489426,80984.0,80977.0,0.012349]
[1741891464729,0.259318,80982.0,80974.0,0.246992]
[1741891465136,0.259335,80977.0,80972.0,0.12070099]
[1741891465353,0.259344,80973.0,80972.0,0.001]
[1741891465532,0.259344,80973.0,80970.0,0.00312461]
[1741891465533,0.259352,80971.0,80970.0,0.00312461]
[1741891465730,0.259352,80971.0,80970.0,0.00612461]
[1741891465932,0.27870222,80971.0,80970.0,0.00312461]
[1741891466392,0.27870222,80971.0,80970.0,0.00012461]
[1741891466607,0.43714222,80971.0,80970.0,0.00012461]
[1741891467048,0.01935022,80971.0,80970.0,0.00312461]
[1741891467260,0.19014022,80971.0,80970.0,0.00012461]
[1741891467454,0.19014022,80971.0,80970.0,0.00312461]
[1741891467810,0.19014022,80971.0,80970.0,0.00012461]
[1741891468419,0.215349,80971.0,80970.0,0.00312461]
[1741891468623,0.19599878,80971.0,80970.0,0.00312461]
[1741891468824,0.19599878,80971.0,80970.0,0.26247961]
[1741891468825,0.18364878,80971.0,80970.0,0.26247961]
[1741891469028,0.18364878,80971.0,80970.0,0.00012461]
[1741891469029,0.19599878,80971.0,80970.0,0.00012461]
[1741891469226,0.19599878,80971.0,80970.0,0.00112461]
[1741891469945,0.19599878,80971.0,80970.0,0.00012461]
[1741891470150,0.12260669,80972.0,80970.0,0.00112461]
[1741891470350,0.012349,80974.0,80970.0,0.00112461]
[1741891470535,0.259344,80974.0,80970.0,0.00112461]
[1741891470787,0.259349,80972.0,80970.0,0.00112461]
[1741891470949,0.01235,80971.0,80970.0,0.00212461]
[1741891471148,0.01235,80971.0,80970.0,0.00112461]
[1741891471575,0.05643137,80971.0,80970.0,0.00012461]
[1741891471850,0.05643137,80971.0,80970.0,0.00112461]
[1741891472050,0.05643137,80971.0,80970.0,0.00212461]
[1741891472256,0.05643137,80971.0,80970.0,0.00112461]
[1741891472453,0.04408137,80971.0,80970.0,0.00112461]
[1741891472646,0.04408137,80971.0,80970.0,0.00212461]
[1741891473074,0.02473127,80971.0,80970.0,0.00212461]
[1741891473590,0.03708127,80971.0,80970.0,0.00246261]
[1741891473822,0.02473127,80971.0,80970.0,0.00246261]
[1741891474442,0.012349,80977.0,80970.0,0.00246261]
[1741891474443,0.012348,80982.0,80975.0,0.012349]
[1741891474664,0.012348,80979.0,80971.0,0.01235]
[1741891474880,0.012348,80979.0,80970.0,0.01481261]
[1741891474881,0.246994,80974.0,80970.0,0.00246261]
[1741891475081,0.247002,80971.0,80970.0,0.00246261]
[1741891475304,0.247002,80971.0,80970.0,0.00146261]
[1741891475524,0.259346,80973.0,80970.0,0.00146261]
[1741891475727,0.01235,80971.0,80970.0,0.00146261]
[1741891475889,0.25935,80972.0,80970.0,0.00146261]
[1741891475890,0.012349,80974.0,80970.0,0.00146261]
[1741891476090,0.247002,80971.0,80970.0,0.00146261]
[1741891476289,0.259352,80971.0,80970.0,0.00146261]
[1741891476536,0.259352,80971.0,80970.0,0.00046261]
[1741891477427,0.259352,80971.0,80970.0,0.00146261]
[1741891478440,0.0193496,80974.0,80971.0,0.259352]
[1741891478768,0.0193496,80974.0,80970.0,0.00146261]
[1741891478971,0.246995,80973.0,80970.0,0.00146261]
[1741891479373,0.246995,80973.0,80970.0,0.00246261]
[1741891479581,0.0193496,80974.0,80971.0,0.247002]
[1741891479886,0.0193496,80974.0,80973.0,0.012349]
[1741891480699,0.0193496,80974.0,80972.0,0.259345]
[1741891480937,0.0193496,80974.0,80973.0,0.012349]
[1741891482472,0.0193496,80974.0,80970.0,0.00046261]
[1741891482473,0.247001,80972.0,80970.0,0.00046261]
[1741891482633,0.01235,80971.0,80970.0,0.00046261]
[1741891485252,0.247001,80972.0,80970.0,0.00046261]
[1741891485551,0.01235,80971.0,80970.0,0.00046261]
[1741891486978,0.01235,80971.0,80970.0,0.00146261]
[1741891487900,0.09055,80971.0,80970.0,0.00146261]
[1741891488260,0.10990173,80971.0,80970.0,0.00146261]
[1741891488462,0.03170173,80971.0,80970.0,0.00246261]
[1741891489020,0.03170173,80971.0,80970.0,0.00146261]
[1741891489851,0.03170173,80971.0,80970.0,0.00046261]
[1741891490248,0.03170173,80971.0,80960.0,0.000338]
[1741891490249,0.259383,80961.0,80960.0,0.000338]
[1741891490412,0.259383,80961.0,80960.0,0.00046275]
[1741891491026,0.27873677,80961.0,80960.0,0.00046275]
[1741891491490,0.57873677,80961.0,80960.0,0.00046275]
[1741891491622,0.57873677,80961.0,80934.0,0.000169]
[1741891491623,0.247111,80935.0,80934.0,0.000169]
[1741891491981,0.259466,80935.0,80934.0,0.000169]
[1741891492323,0.27882323,80935.0,80934.0,0.000169]
[1741891492783,0.27882323,80935.0,80934.0,0.002169]
[1741891492991,0.27894764,80935.0,80934.0,0.002169]
[1741891493351,0.25959041,80935.0,80934.0,0.004169]
[1741891493580,0.28473109,80935.0,80934.0,0.004169]
[1741891493987,0.28473109,80935.0,80934.0,0.002169]
[1741891494212,0.28473109,80935.0,80934.0,0.004169]
[1741891494414,0.28473109,80935.0,80934.0,0.002169]
[1741891494628,0.28473109,80935.0,80934.0,0.006169]
[1741891495208,0.28473109,80935.0,80934.0,0.002169]
[1741891495529,0.28473109,80935.0,80934.0,0.004169]
[1741891497133,0.58473109,80935.0,80934.0,0.004169]
[1741891499358,0.58473109,80935.0,80934.0,0.002169]
[1741891499566,0.58473109,80935.0,80934.0,0.000169]
[1741891499763,0.70443208,80935.0,80934.0,0.000169]
[1741891499986,1.11493208,80935.0,80934.0,0.000169]
[1741891500485,1.15117299,80935.0,80934.0,0.000169]
[1741891500679,1.17053503,80935.0,80934.0,0.000169]
[1741891500885,0.247173,80915.0,80909.0,0.012359]
[1741891501137,0.247173,80915.0,80910.0,0.259544]
[1741891501321,0.012358,80917.0,80911.0,0.012359]
[1741891501491,0.15828,80923.0,80916.0,0.012358]
[1741891501698,0.15828,80923.0,80905.0,0.0771]
[1741891501699,0.012356,80930.0,80925.0,0.012357]
[1741891501921,0.247163,80918.0,80912.0,0.11970099]
[1741891502118,0.012357,80921.0,80912.0,0.11970099]
[1741891502119,0.259514,80921.0,80913.0,0.012358]
[1741891502318,0.259505,80924.0,80918.0,0.247163]
[1741891502538,0.012357,80923.0,80915.0,0.012358]
[1741891502703,0.259519,80919.0,80914.0,0.11970099]
[1741891502911,0.247151,80922.0,80915.0,0.259528]
[1741891503219,0.012357,80921.0,80915.0,0.012358]
[1741891503421,0.25651298,80922.0,80916.0,0.012358]
[1741891503644,0.01936198,80922.0,80917.0,0.012358]
[1741891503842,0.01936198,80922.0,80915.0,0.004]
[1741891503843,0.247163,80918.0,80915.0,0.004]
[1741891504045,0.259521,80918.0,80915.0,0.004]
[1741891504211,0.01936198,80922.0,80920.0,0.247156]
[1741891504410,0.01936198,80922.0,80921.0,0.012357]
[1741891504611,0.001,80924.0,80922.0,0.259508]
[1741891504893,0.02454284,80926.0,80924.0,0.247145]
[1741891505086,0.012357,80923.0,80913.0,0.012358]
[1741891505257,0.012357,80923.0,80915.0,0.001]
[1741891505463,0.27168284,80926.0,80919.0,0.259518]
[1741891505671,0.02454284,80926.0,80921.0,0.012357]
[1741891505879,0.02454284,80926.0,80921.0,0.259509]
[1741891506078,0.03789884,80926.0,80915.0,0.251171]
[1741891506241,0.259512,80921.0,80915.0,0.259529]
[1741891506441,0.259516,80920.0,80915.0,0.259529]
[1741891506663,0.012357,80920.0,80915.0,0.263529]
[1741891506887,0.012357,80920.0,80915.0,0.259529]
[1741891507083,0.08854284,80926.0,80925.0,0.012357]
[1741891507291,0.063,80926.0,80925.0,0.012357]
[1741891507459,0.0823611,80926.0,80925.0,0.012357]
[1741891507666,0.0833611,80926.0,80925.0,0.012357]
[1741891508184,0.0823611,80926.0,80922.0,0.259505]
[1741891508383,0.012357,80920.0,80915.0,0.004]
[1741891508590,0.24715,80923.0,80917.0,0.247164]